bitfinex-derivatives/quotes_BNBF0:USTF0_20241231
["timestamp","ask_amount","ask_price","bid_price","bid_amount"]
[1735654360504,1.46574145,713.1,712.18,1.02893356]
[1735654361506,1.46574145,713.1,712.23,1.02893356]
[1735654362511,1.46574145,713.1,712.05,1.02893356]
[1735654363810,1.46574145,713.1,712.03,1.02893356]
[1735654365009,1.46574145,713.1,712.02,1.02893356]
[1735654366006,1.46574145,713.1,712.05,1.02893356]
[1735654366911,1.46574145,713.1,712.06,1.02893356]
[1735654368209,1.46574145,713.1,712.07,1.02893356]
[1735654369617,1.46574145,713.1,712.1,1.02893356]
[1735654370616,1.46574145,713.1,712.31,1.02893356]
[1735654371618,1.46574145,713.1,712.35,1.02893356]
[1735654372821,1.46574145,713.1,712.33,1.02893356]
[1735654373814,1.46574145,713.1,711.74,2.10073935]
[1735654373815,1.46574145,713.1,712.34,1.02893356]
[1735654375515,1.46574145,713.1,712.37,1.02893356]
[1735654376520,1.46574145,713.1,712.43,1.02893356]
[1735654380726,1.46574145,713.1,712.55,1.02893356]
[1735654383028,1.46574145,713.1,712.61,1.02893356]
[1735654383823,1.03897411,713.81,712.61,1.02893356]
[1735654384020,1.46476462,713.25,712.61,1.02893356]
[1735654384222,1.03897411,713.81,712.61,1.02893356]
[1735654384426,1.46460023,713.27,712.69,1.02893356]
[1735654384926,1.03897411,713.94,712.69,1.02893356]
[1735654385228,0.28014343,713.92,712.69,1.02893356]
[1735654385427,0.25790631,713.91,712.69,1.02893356]
[1735654385624,0.25790631,713.91,712.79,1.02893356]
[1735654386029,1.46420482,713.9,712.79,1.02893356]
[1735654386424,0.2578885,713.89,712.79,1.02893356]
[1735654386629,1.46420482,713.9,712.73,1.02893356]
[1735654387632,1.46420482,713.9,712.68,1.02893356]
[1735654388632,1.46420482,713.9,712.43,1.02893356]
[1735654390135,1.46420482,713.9,712.45,1.02893356]
[1735654391432,1.46420482,713.9,712.36,1.02893356]
[1735654392534,1.46420482,713.9,712.34,1.02893356]
[1735654393636,1.46420482,713.9,712.31,1.02893356]
[1735654394936,1.46420482,713.9,712.28,1.02893356]
[1735654396238,1.46420482,713.9,711.48,1.23472027]
[1735654396239,1.46420482,713.9,712.25,1.02893356]
[1735654397139,0.25792372,713.89,712.25,1.02893356]
[1735654397340,0.25792372,713.89,711.91,1.02893356]
[1735654397341,0.25792372,713.89,712.24,1.02893356]
[1735654398634,0.25792372,713.89,712.37,1.02893356]
[1735654399438,1.46420482,713.9,712.37,1.02893356]
[1735654399640,1.46420482,713.9,710.11,3.81713533]
[1735654399641,0.25796988,713.89,712.34,1.02893356]
[1735654400542,0.25796988,713.89,712.33,1.02893356]
[1735654401843,0.25796988,713.89,712.36,1.02893356]
[1735654402235,0.25794631,713.88,712.36,1.02893356]
[1735654402539,0.25794631,713.87,712.36,1.02893356]
[1735654402744,0.25794631,713.86,712.36,1.02893356]
[1735654402941,0.25794631,713.85,712.36,1.02893356]
[1735654403144,0.25794631,713.84,712.44,1.02893356]
[1735654403343,0.25794631,713.83,712.44,1.02893356]
[1735654403539,0.25794631,713.82,712.44,1.02893356]
[1735654403744,0.25794631,713.81,712.44,1.02893356]
[1735654403944,0.25795042,713.8,712.44,1.02893356]
[1735654404345,0.25795042,713.8,712.36,1.02893356]
[1735654404746,0.2579573,713.79,712.36,1.02893356]
[1735654404947,0.2579573,713.78,712.36,1.02893356]
[1735654405141,0.2579573,713.77,712.36,1.02893356]
[1735654405346,0.2579573,713.76,712.36,1.02893356]
[1735654405645,0.2579573,713.75,712.36,1.02893356]
[1735654405839,0.2579573,713.74,712.36,1.02893356]
[1735654406043,0.2579573,713.73,712.36,1.02893356]
[1735654406243,1.46449751,713.81,712.36,1.02893356]
[1735654406442,0.25795432,713.8,712.36,1.02893356]
[1735654406649,0.25795432,713.8,712.35,1.02893356]
[1735654407444,0.28019838,713.78,712.35,1.02893356]
[1735654407640,0.25795791,713.77,712.35,1.02893356]
[1735654407845,0.28021015,713.75,712.39,1.02893356]
[1735654408041,0.25795791,713.74,712.39,1.02893356]
[1735654408244,0.28022193,713.72,712.39,1.02893356]
[1735654408847,0.28022193,713.72,712.41,1.02893356]
[1735654409046,0.2579607,713.71,712.41,1.02893356]
[1735654409244,0.28022978,713.7,712.41,1.02893356]
[1735654411249,0.28022978,713.7,712.53,1.02893356]
[1735654412444,0.28022978,713.7,711.84,2.10073935]
[1735654412445,0.28022978,713.7,712.58,1.02893356]
[1735654413645,0.28022978,713.7,712.51,1.02893356]
[1735654414245,1.4645386,713.69,712.51,1.02893356]
[1735654414646,1.4645386,713.69,712.54,1.02893356]
[1735654415350,0.28023764,713.68,712.54,1.02893356]
[1735654417252,0.28023764,713.68,712.56,1.02893356]
[1735654418350,0.28023764,713.68,712.58,1.02893356]
[1735654421447,0.28023764,713.68,712.56,1.02893356]
[1735654421647,0.25796511,713.67,712.56,1.02893356]
[1735654422355,0.25796511,713.67,712.68,1.02893356]
[1735654422653,0.28023764,713.68,712.68,1.02893356]
[1735654423155,0.25795798,713.67,712.68,1.02893356]
[1735654423954,0.25797419,713.66,712.68,1.02893356]
[1735654424150,0.25797419,713.66,712.03,2.10073935]
[1735654424151,0.25797419,713.65,712.66,1.02893356]
[1735654424354,0.25797419,713.64,712.66,1.02893356]
[1735654424549,0.25797419,713.63,712.66,1.02893356]
[1735654424757,0.25797419,713.62,712.66,1.02893356]
[1735654425050,0.28023764,713.68,712.66,1.02893356]
[1735654425356,1.46462078,713.61,712.65,1.02893356]
[1735654426656,0.28026905,713.6,712.73,1.02893356]
[1735654427654,0.28026905,713.6,712.74,1.02893356]
[1735654429157,0.28026905,713.6,712.13,2.10073935]
[1735654429158,0.28026905,713.6,712.8,1.02893356]
[1735654430356,0.28026905,713.6,712.84,1.02893356]
[1735654432657,0.28026905,713.6,712.98,1.02893356]
[1735654433956,0.28026905,713.6,713.06,1.02893356]
[1735654435359,0.28026905,713.6,712.98,1.02893356]
[1735654436159,0.28026905,713.6,712.95,1.02893356]
[1735654437357,0.28026905,713.6,712.94,1.02893356]
[1735654438366,0.28026905,713.6,712.93,1.02893356]
[1735654439462,0.28026905,713.6,712.37,2.10073935]
[1735654439463,0.28026905,713.6,712.91,1.02893356]
[1735654440766,0.28026905,713.6,712.71,1.02893356]
[1735654440767,0.28026905,713.6,712.87,1.02893356]
[1735654442761,0.28026905,713.6,712.86,1.02893356]
[1735654446067,0.28026905,713.6,712.84,1.02893356]
[1735654448264,0.28026905,713.6,712.79,1.02893356]
[1735654449467,0.28026905,713.6,712.75,1.02893356]
[1735654450871,0.28026905,713.6,712.77,1.02893356]
[1735654452270,0.28026905,713.6,712.81,1.02893356]
[1735654453375,0.28026905,713.6,712.82,1.02893356]
[1735654454472,0.28026905,713.6,712.88,1.02893356]
[1735654455874,0.28026905,713.6,712.91,1.02893356]
[1735654457173,0.28026905,713.6,712.7,1.02893356]
[1735654458274,0.28026905,713.6,712.65,1.02893356]
[1735654459573,0.28026905,713.6,712.62,1.02893356]
[1735654460677,0.28026905,713.6,712.67,1.02893356]
[1735654461476,0.28026905,713.6,712.68,1.02893356]
[1735654462671,0.28026905,713.6,712.69,1.02893356]
[1735654463772,0.28026905,713.6,712.71,1.02893356]
[1735654464376,1.46462078,713.61,712.71,1.02893356]
[1735654465372,1.46462078,713.61,712.83,1.02893356]
[1735654466374,1.46462078,713.61,712.87,1.02893356]
[1735654467479,1.46462078,713.61,712.9,1.02893356]
[1735654468678,1.46462078,713.61,712.89,1.02893356]
[1735654469875,1.46462078,713.61,711.97,2.10073935]
[1735654469876,1.46462078,713.61,712.86,1.02893356]
[1735654474384,1.46462078,713.61,712.88,1.02893356]
[1735654475481,1.46462078,713.61,712.98,1.02893356]
[1735654476977,1.46462078,713.61,712.2,2.10073935]
[1735654476978,1.46462078,713.61,712.97,1.02893356]
[1735654478081,1.46462078,713.61,712.93,1.02893356]
[1735654478882,1.46462078,713.61,712.91,1.02893356]
[1735654479782,1.46462078,713.61,712.92,1.02893356]
[1735654481385,1.46462078,713.61,712.95,1.02893356]
[1735654482286,1.46462078,713.61,712.93,1.02893356]
[1735654483386,1.46462078,713.61,712.96,1.02893356]
[1735654484783,1.46462078,713.61,712.98,1.02893356]
[1735654485886,1.46462078,713.61,713.01,1.02893356]
[1735654487183,1.46462078,713.61,713.09,1.02893356]
[1735654488288,1.46462078,713.61,713.15,1.02893356]
[1735654489489,1.46462078,713.61,712.44,2.10073935]
[1735654489490,1.46462078,713.61,713.26,1.02893356]
[1735654490791,1.46462078,713.61,713.29,1.02893356]
[1735654492093,1.46462078,713.61,713.3,1.02893356]
[1735654494993,1.46462078,713.61,713.29,1.02893356]
[1735654496493,1.46462078,713.61,713.3,1.02893356]
[1735654498699,1.46462078,713.61,713.1,1.02893356]
[1735654498700,1.46462078,713.61,713.31,1.02893356]
[1735654500104,1.46462078,713.61,713.32,1.02893356]
[1735654500900,1.46462078,713.61,713.33,1.02893356]
[1735654501705,1.03897411,714.14,713.33,1.02893356]
[1735654501902,1.46375831,713.6,713.33,1.02893356]
[1735654502104,1.46375831,713.6,713.24,1.02893356]
[1735654502302,1.03897411,714.28,713.24,1.02893356]
[1735654502506,1.46376344,713.59,713.24,1.02893356]
[1735654502710,1.03897411,714.28,713.24,1.02893356]
[1735654502904,0.28001008,714.26,713.24,1.02893356]
[1735654503112,0.25777918,714.25,713.24,1.02893356]
[1735654503505,0.28001008,714.26,713.24,1.02893356]
[1735654503903,1.46345053,714.25,713.24,1.02893356]
[1735654504106,0.25778546,714.24,713.24,1.02893356]
[1735654504512,0.28002576,714.22,713.22,1.02893356]
[1735654505610,0.28002576,714.22,713.2,1.02893356]
[1735654506003,0.25779807,714.21,713.2,1.02893356]
[1735654506611,0.28002576,714.22,713.2,1.02893356]
[1735654507011,0.28002576,714.22,713.17,1.02893356]
[1735654507912,0.28002576,714.22,712.89,1.02893356]
[1735654508109,0.28002576,714.22,712.86,1.04600366]
[1735654509113,0.25788804,714.21,712.19,1.02893356]
[1735654509410,0.28002576,714.22,712.19,1.02893356]
[1735654509606,0.2578347,714.21,712.2,0.28081999]
[1735654509809,0.28002576,714.22,712.2,0.28081999]
[1735654510010,0.25783275,714.21,712.2,0.28081999]
[1735654510208,0.25783275,714.21,712.44,1.02893356]
[1735654511313,0.25783275,714.21,712.81,1.02893356]
[1735654512114,1.03897411,714.19,712.78,1.02893356]
[1735654512315,0.25783275,714.18,712.78,1.02893356]
[1735654513214,1.03897411,714.14,712.82,1.02893356]
[1735654513414,0.25783275,714.13,712.82,1.02893356]
[1735654514310,0.25783275,714.13,712.78,1.02893356]
[1735654514311,2.50286583,714.12,712.78,1.02893356]
[1735654514509,0.25783275,714.11,712.78,1.02893356]
[1735654514916,2.50286583,714.12,712.78,1.02893356]
[1735654515111,0.28007674,714.09,712.78,1.02893356]
[1735654515314,0.25782672,714.08,712.82,1.02893356]
[1735654515817,0.2800885,714.06,712.82,1.02893356]
[1735654516019,0.25782672,714.05,712.82,1.02893356]
[1735654516413,0.2800885,714.06,712.82,1.02893356]
[1735654517317,0.2800885,714.06,712.71,1.02893356]
[1735654518818,0.2800885,714.06,712.37,1.23472027]
[1735654518819,0.2800885,714.06,712.69,1.02893356]
[1735654520325,0.2800885,714.06,712.76,1.02893356]
[1735654522424,0.2800885,714.06,712.47,1.02893356]
[1735654522723,0.2800885,714.06,712.48,0.28070963]
[1735654523317,0.2800885,714.06,712.48,1.30964319]
[1735654524822,0.2800885,714.06,712.56,1.02893356]
[1735654525222,0.2800885,714.06,712.57,0.28067417]
[1735654526622,0.2800885,714.06,712.62,1.02893356]
[1735654526825,0.2800885,714.06,712.63,0.28065054]
[1735654527533,1.46292761,714.48,712.63,0.28065054]
[1735654528226,1.03897411,714.65,712.63,0.28065054]
[1735654528422,1.46264579,714.62,712.63,0.28065054]
[1735654529127,1.46264579,714.62,713.41,1.02893356]
[1735654530428,1.46264579,714.62,713.0,2.67486543]
[1735654530629,1.46264579,714.62,713.02,2.67486543]
[1735654530829,1.46264579,714.62,713.04,0.28048917]
[1735654538233,1.03897411,716.21,713.04,0.28048917]
[1735654538433,0.2793062,716.06,713.04,0.28048917]
[1735654538633,1.46239481,714.63,713.04,0.28048917]
[1735654538832,0.2793062,716.06,713.04,0.28048917]
[1735654539027,1.71899668,716.05,713.04,0.28048917]
[1735654539228,0.25743361,716.04,713.04,0.28048917]
[1735654539534,0.25743361,716.03,713.04,0.28048917]
[1735654539727,0.25743361,716.02,713.04,0.28048917]
[1735654539932,0.25743361,716.01,713.04,0.28048917]
[1735654540233,0.25743361,716.0,713.04,0.28048917]
[1735654540432,0.25743361,715.99,713.04,0.28048917]
[1735654540735,0.25743361,715.98,713.04,0.28048917]
[1735654541036,0.27939204,715.84,713.04,0.28048917]
[1735654541228,0.25743785,715.83,713.04,0.28048917]
[1735654541431,0.27944669,715.7,713.04,0.28048917]
[1735654541636,0.25743785,715.69,713.04,0.28048917]
[1735654543434,0.25743785,715.68,713.04,0.28048917]
[1735654543635,0.25745162,715.67,713.04,0.28048917]
[1735654543835,0.25745162,715.66,713.04,0.28048917]
[1735654544135,0.25745162,715.65,713.04,0.28048917]
[1735654544336,0.25745162,715.64,713.04,0.28048917]
[1735654544536,0.25745162,715.63,713.04,0.28048917]
[1735654544737,0.25745162,715.62,713.04,0.28048917]
[1735654544935,0.25745162,715.61,713.04,0.28048917]
[1735654545235,0.25745162,715.6,713.04,0.28048917]
[1735654545435,0.25745162,715.59,713.04,0.28048917]
[1735654545636,0.25745162,715.58,713.04,0.28048917]
[1735654545834,0.27944669,715.7,713.04,0.28048917]
[1735654545835,0.25745162,715.57,713.04,0.28048917]
[1735654546038,0.25745162,715.56,713.04,0.28048917]
[1735654546332,0.25747507,715.55,713.04,0.28048917]
[1735654546534,0.25747507,715.54,713.04,0.28048917]
[1735654546736,0.25747507,715.53,713.04,0.28048917]
[1735654546938,0.25747507,715.52,713.04,0.28048917]
[1735654547137,0.25747507,715.51,713.04,0.28048917]
[1735654547339,0.25747507,715.5,713.04,0.28048917]
[1735654547638,0.25747507,715.49,713.04,0.28048917]
[1735654547832,0.25747507,715.48,713.04,0.28048917]
[1735654548038,0.25747507,715.47,713.04,0.28048917]
[1735654548338,0.25747507,715.46,713.04,0.28048917]
[1735654548638,0.27944669,715.7,713.04,0.28048917]
[1735654548639,0.25747507,715.45,713.04,0.28048917]
[1735654548836,0.25753696,715.44,713.04,0.28048917]
[1735654549036,0.25753696,715.43,713.04,0.28048917]
[1735654549242,0.25753696,715.42,713.04,0.28048917]
[1735654549539,0.25753696,715.41,713.04,0.28048917]
[1735654549739,0.25753696,715.4,713.04,0.28048917]
[1735654550034,0.25753696,715.39,713.04,0.28048917]
[1735654550240,0.25753696,715.38,713.04,0.28048917]
[1735654550439,0.25753696,715.37,713.04,0.28048917]
[1735654550639,0.25753696,715.36,713.04,0.28048917]
[1735654550838,0.25753696,715.35,713.04,0.28048917]
[1735654551039,0.25753696,715.34,713.04,0.28048917]
[1735654551237,0.25753696,715.33,713.04,0.28048917]
[1735654551434,0.25758441,715.32,713.04,0.28048917]
[1735654551635,1.46223607,715.43,713.04,0.28048917]
[1735654551636,0.25758441,715.31,713.04,0.28048917]
[1735654551835,0.25758441,715.3,713.04,0.28048917]
[1735654552039,0.27964596,715.19,713.04,0.28048917]
[1735654552239,0.25758441,715.18,713.04,0.28048917]
[1735654553942,0.27968898,715.08,713.04,0.28048917]
[1735654554138,0.25757858,715.07,713.04,0.28048917]
[1735654554543,0.27970072,715.05,713.04,0.28048917]
[1735654554741,0.25759261,715.04,713.04,0.28048917]
[1735654555540,0.27971245,715.02,713.04,0.28048917]
[1735654555843,0.25759261,715.01,713.04,0.28048917]
[1735654556242,0.27972419,714.99,713.04,0.28048917]
[1735654556541,0.25759261,714.98,713.04,0.28048917]
[1735654556741,0.25759393,714.97,713.04,0.28048917]
[1735654556942,0.27973984,714.95,713.04,0.28048917]
[1735654557139,0.25759393,714.94,713.04,0.28048917]
[1735654557334,0.27975158,714.92,713.04,0.28048917]
[1735654557539,0.25759393,714.91,713.04,0.28048917]
[1735654557741,0.27976332,714.89,713.04,0.28048917]
[1735654557936,0.25759393,714.88,713.04,0.28048917]
[1735654558135,0.27977506,714.86,713.04,0.28048917]
[1735654558342,0.25759393,714.85,713.04,0.28048917]
[1735654558740,0.2797868,714.83,713.04,0.28048917]
[1735654558938,0.25759532,714.82,713.04,0.28048917]
[1735654559135,0.27979854,714.8,713.04,0.28048917]
[1735654559342,0.25759621,714.79,713.04,0.28048917]
[1735654559540,0.27981028,714.77,713.04,0.28048917]
[1735654559842,0.25759621,714.76,713.04,0.28048917]
[1735654560044,0.27982203,714.74,713.04,0.28048917]
[1735654560242,0.25759621,714.73,713.04,0.28048917]
[1735654560436,0.25759621,714.72,713.04,0.28048917]
[1735654560638,0.25759621,714.71,713.04,0.28048917]
[1735654560835,0.25759621,714.7,713.04,0.28048917]
[1735654561038,0.27982203,714.74,713.04,0.28048917]
[1735654561039,0.25759621,714.69,713.04,0.28048917]
[1735654561243,0.25759621,714.68,713.2,1.02893356]
[1735654561441,0.25759621,714.67,713.2,1.02893356]
[1735654561642,0.27985335,714.66,713.2,1.02893356]
[1735654561841,0.25759621,714.65,713.2,1.02893356]
[1735654562240,0.27986118,714.64,713.2,1.02893356]
[1735654562543,0.25759621,714.63,713.3,1.02893356]
[1735654562843,0.25759621,714.62,713.3,1.02893356]
[1735654563041,0.25759621,714.61,713.3,1.02893356]
[1735654563242,0.25759621,714.6,713.3,1.02893356]
[1735654563540,0.25759621,714.59,713.3,1.02893356]
[1735654563742,0.25759621,714.63,713.35,1.02893356]
[1735654564042,0.53746523,714.62,713.35,1.02893356]
[1735654564336,0.25759621,714.61,713.35,1.02893356]
[1735654564542,0.25759621,714.6,713.35,1.02893356]
[1735654564842,0.25759621,714.6,713.05,0.71276585]
[1735654564843,0.25759621,714.59,713.36,1.02893356]
[1735654565042,0.27986902,714.62,713.36,1.02893356]
[1735654565043,0.25759621,714.58,713.36,1.02893356]
[1735654565238,0.25759621,714.57,713.36,1.02893356]
[1735654565439,0.25759621,714.56,713.36,1.02893356]
[1735654565639,0.25759621,714.55,713.36,1.02893356]
[1735654565842,0.25759621,714.54,713.36,1.02893356]
[1735654566141,0.25759621,714.54,713.05,0.71276585]
[1735654566142,0.25759621,714.53,713.32,1.02893356]
[1735654566334,0.25759922,714.52,713.32,1.02893356]
[1735654566540,0.25759922,714.51,713.32,1.02893356]
[1735654566737,0.25758842,714.5,713.32,1.02893356]
[1735654566943,0.25758842,714.49,713.32,1.02893356]
[1735654567136,0.25758842,714.48,713.32,1.02893356]
[1735654567338,0.25758842,714.47,713.23,1.02893356]
[1735654567549,0.27986902,714.62,713.23,1.02893356]
[1735654567839,0.25760234,714.61,713.23,1.02893356]
[1735654568440,0.25760336,714.6,713.23,1.02893356]
[1735654568643,0.25760336,714.59,713.2,1.02893356]
[1735654568838,0.25760372,714.58,713.2,1.02893356]
[1735654569036,0.25760372,714.57,713.2,1.02893356]
[1735654569242,0.25760372,714.56,713.2,1.02893356]
[1735654569442,0.25760372,714.55,713.2,1.02893356]
[1735654569645,0.25760372,714.61,713.16,1.02893356]
[1735654569845,1.46271239,714.54,713.16,1.02893356]
[1735654570046,0.25760372,714.53,713.16,1.02893356]
[1735654570551,1.46271239,714.54,713.16,1.02893356]
[1735654570849,0.25760693,714.53,713.15,1.02893356]
[1735654571344,1.46271239,714.54,713.15,1.02893356]
[1735654572146,1.46271239,714.54,713.11,1.02893356]
[1735654573350,1.46271239,714.54,713.05,0.71276585]
[1735654573351,1.46271239,714.54,713.12,1.02893356]
[1735654574454,1.46271239,714.54,713.04,0.28048917]
[1735654577855,1.46271239,714.54,713.06,1.02893356]
[1735654578055,1.46271239,714.54,713.07,0.28047737]
[1735654579358,1.46271239,714.54,713.09,1.02893356]
[1735654580457,1.46271239,714.54,713.15,1.02893356]
[1735654581259,1.46271239,714.54,713.2,1.02893356]
[1735654582063,1.46271239,714.54,713.24,1.02893356]
[1735654583263,1.46271239,714.54,713.08,0.71558838]
[1735654583264,1.46271239,714.54,713.27,1.02893356]
[1735654584262,1.46271239,714.54,713.07,0.28047737]
[1735654589060,1.46271239,714.54,713.2,1.02893356]
[1735654590362,1.46271239,714.54,713.41,1.02893356]
[1735654592661,1.46271239,714.54,713.77,1.02893356]
[1735654593762,1.46271239,714.54,713.79,1.02893356]
[1735654594863,1.46271239,714.54,713.55,1.02893356]
[1735654595965,0.27986902,714.62,713.07,2.38121672]
[1735654595966,0.27986902,714.62,713.46,1.02893356]
[1735654597565,0.27986902,714.62,713.43,1.02893356]
[1735654598364,0.27986902,714.62,713.39,1.02893356]
[1735654599266,0.27986902,714.62,713.47,1.02893356]
[1735654599964,1.46183682,714.61,713.47,1.02893356]
[1735654600161,1.46183682,714.61,713.43,1.02893356]
[1735654601267,1.46183682,714.61,713.46,1.02893356]
[1735654602466,1.46183682,714.61,713.6,1.02893356]
[1735654603968,1.46183682,714.61,713.63,1.02893356]
[1735654605367,1.46183682,714.61,713.64,1.02893356]
[1735654606670,1.46183682,714.61,713.59,1.02893356]
[1735654607872,1.46183682,714.61,713.56,1.02893356]
[1735654608866,1.46183682,714.61,713.52,1.02893356]
[1735654611173,1.46183682,714.61,713.5,1.02893356]
[1735654612571,1.46183682,714.61,713.36,1.02893356]
[1735654613374,1.46183682,714.61,713.37,1.02893356]
[1735654614176,1.46183682,714.61,713.39,1.02893356]
[1735654614970,1.46183682,714.61,713.42,1.02893356]
[1735654616175,1.46183682,714.61,713.47,1.02893356]
[1735654617479,1.46183682,714.61,713.48,1.02893356]
[1735654618579,1.46183682,714.61,713.01,1.02893356]
[1735654618977,0.27987685,714.6,713.01,1.02893356]
[1735654620287,0.27987685,714.6,713.18,1.02893356]
[1735654621280,0.27987685,714.6,713.12,1.02893356]
[1735654622683,0.27987685,714.6,713.17,1.02893356]
[1735654623683,0.27987685,714.6,713.13,1.02893356]
[1735654624981,0.27987685,714.6,713.22,1.02893356]
[1735654626385,0.27987685,714.6,713.08,0.71568648]
[1735654626386,0.27987685,714.6,713.25,1.02893356]
[1735654627688,0.27987685,714.6,713.17,1.02893356]
[1735654628688,0.27987685,714.6,713.4,1.03657015]
[1735654629789,0.27987685,714.6,713.38,1.03657015]
[1735654630693,0.27987685,714.6,712.79,1.23472027]
[1735654630694,0.27987685,714.6,713.36,1.03657015]
[1735654631786,0.27987685,714.6,713.3,1.03657015]
[1735654632890,0.27987685,714.6,713.31,1.03657015]
[1735654633890,0.27987685,714.6,713.29,1.03657015]
[1735654634192,0.25760778,714.59,713.29,1.03657015]
[1735654634394,0.27987685,714.6,713.29,1.03657015]
[1735654634793,0.27987685,714.6,713.25,1.03657015]
[1735654635989,0.27987685,714.6,713.01,1.03657015]
[1735654637792,0.27987685,714.6,712.99,1.03657015]
[1735654638989,0.27987685,714.6,712.96,1.03657015]
[1735654639689,0.25766808,714.59,712.96,1.03657015]
[1735654640291,0.27987685,714.6,712.96,1.03657015]
[1735654640492,0.25766247,714.59,712.94,1.03657015]
[1735654641499,0.25766247,714.59,712.98,1.03657015]
[1735654643203,0.25768727,714.58,712.98,1.03657015]
[1735654643393,0.25768727,714.59,712.98,1.03657015]
[1735654643594,0.25768727,714.58,712.98,1.03657015]
[1735654643793,0.25768727,714.57,712.98,1.03657015]
[1735654643997,0.27987685,714.6,713.09,1.03657015]
[1735654643998,0.25768727,714.56,713.09,1.03657015]
[1735654644301,0.25768727,714.55,713.09,1.03657015]
[1735654644494,0.25768727,714.54,713.09,1.03657015]
[1735654644800,0.25768727,714.53,713.09,1.03657015]
[1735654644995,0.25768727,714.52,713.09,1.03657015]
[1735654645195,0.25768727,714.51,713.09,1.03657015]
[1735654645397,1.46305574,714.53,713.11,1.03657015]
[1735654645398,0.25768727,714.5,713.11,1.03657015]
[1735654645594,0.25768727,714.49,713.11,1.03657015]
[1735654645793,0.25768727,714.52,713.11,1.03657015]
[1735654645998,0.25768727,714.51,713.11,1.03657015]
[1735654646300,0.25768727,714.5,713.14,1.03657015]
[1735654646504,0.25768727,714.52,713.14,1.03657015]
[1735654646799,0.25768727,714.51,713.14,1.03657015]
[1735654646994,0.25768727,714.5,713.09,1.03657015]
[1735654647195,0.25768727,714.49,713.09,1.03657015]
[1735654647400,0.25768727,714.48,713.09,1.03657015]
[1735654647700,0.25768727,714.47,713.09,1.03657015]
[1735654647998,0.25768727,714.46,713.09,1.03657015]
[1735654648202,0.25768727,714.45,712.9,1.03657015]
[1735654648401,0.25768727,714.52,712.9,1.03657015]
[1735654648595,0.25768727,714.51,712.9,1.03657015]
[1735654648795,0.25768727,714.52,712.9,1.03657015]
[1735654648994,0.25768727,714.51,712.9,1.03657015]
[1735654649192,0.25768727,714.5,712.83,1.03657015]
[1735654649399,0.25768727,714.49,712.83,1.03657015]
[1735654649594,0.25768727,714.48,712.83,1.03657015]
[1735654649798,0.25768727,714.47,712.83,1.03657015]
[1735654649994,0.25768727,714.46,712.83,1.03657015]
[1735654650194,0.25768727,714.45,712.83,1.03657015]
[1735654650398,0.25768727,714.44,712.84,1.03657015]
[1735654650597,0.25768727,714.43,712.84,1.03657015]
[1735654650796,0.25768727,714.42,712.84,1.03657015]
[1735654650995,0.25777833,714.41,712.84,1.03657015]
[1735654651194,0.25777833,714.52,712.84,1.03657015]
[1735654651400,0.25777833,714.52,712.21,2.10073935]
[1735654651401,0.25777833,714.4,712.68,1.03657015]
[1735654651595,0.25777833,714.39,712.68,1.03657015]
[1735654651795,0.25777833,714.52,712.68,1.03657015]
[1735654652103,0.25777833,714.51,712.68,1.03657015]
[1735654652298,0.25777833,714.5,712.68,1.03657015]
[1735654652499,0.25777833,714.49,712.88,1.03657015]
[1735654652697,0.25777833,714.48,712.88,1.03657015]
[1735654652901,0.25777833,714.47,712.88,1.03657015]
[1735654653097,0.25777833,714.46,712.88,1.03657015]
[1735654653303,0.25777833,714.45,712.88,1.03657015]
[1735654653504,0.25777833,714.45,712.09,2.10073935]
[1735654653505,0.25771674,714.44,712.95,1.03657015]
[1735654653704,0.25771674,714.43,712.95,1.03657015]
[1735654653899,0.25771674,714.42,712.95,1.03657015]
[1735654654098,0.25771674,714.52,712.95,1.03657015]
[1735654654301,0.25771674,714.51,712.95,1.03657015]
[1735654654501,0.25771674,714.5,713.05,1.03657015]
[1735654654702,0.25771674,714.49,713.05,1.03657015]
[1735654654902,0.25771674,714.48,713.05,1.03657015]
[1735654655204,0.25771674,714.47,713.05,1.03657015]
[1735654655504,0.25771674,714.46,713.04,1.03657015]
[1735654655701,0.25771674,714.45,713.04,1.03657015]
[1735654656006,0.25771674,714.44,713.04,1.03657015]
[1735654656204,0.25772286,714.43,713.04,1.03657015]
[1735654656601,0.25772286,714.43,713.01,1.03657015]
[1735654656800,1.46313776,714.44,713.01,1.03657015]
[1735654657903,1.46313776,714.44,712.58,1.03657015]
[1735654658109,1.46313776,714.44,712.59,0.2806663]
[1735654658705,0.25775021,714.43,712.59,0.2806663]
[1735654658913,0.25778594,714.42,712.59,0.2806663]
[1735654659111,0.25778594,714.41,712.64,1.03657015]
[1735654659301,0.25778594,714.4,712.64,1.03657015]
[1735654659507,0.25778594,714.39,712.64,1.03657015]
[1735654659705,0.25778594,714.38,712.64,1.03657015]
[1735654659910,0.25778594,714.37,712.64,1.03657015]
[1735654660210,1.46313776,714.44,712.59,0.2806663]
[1735654660211,0.25778594,714.36,712.74,1.03657015]
[1735654660402,0.25778594,714.35,712.74,1.03657015]
[1735654660603,0.25778594,714.34,712.74,1.03657015]
[1735654660805,0.25778594,714.33,712.74,1.03657015]
[1735654661003,0.25778594,714.32,712.74,1.03657015]
[1735654661205,0.25778594,714.32,712.8,1.03657015]
[1735654661206,0.25778594,714.31,712.8,1.03657015]
[1735654661402,0.27998656,714.32,712.8,1.03657015]